[Event "EYCC Open-U12 2019"]
[Site "Bratislava"]
[Date "2019.08.07"]
[Round "6.12"]
[White "Tobak, Mikhail"]
[Black "Dudarev, Vladislav"]
[Result "1-0"]
[ECO "B30"]
[WhiteElo "1943"]
[BlackElo "2137"]
[Annotator "NA"]
[PlyCount "135"]
[EventDate "2019.08.02"]
[EventType "swiss"]
[EventCountry "SVK"]
[SourceTitle "playchess.com"]
[Source "ChessBase"]
[SourceQuality "1"]
[TimeControl "40/5400+30:1800+30"]

1. e4 {[%emt 0:00:00]} c5 {[%emt 0:00:00]} 2. Nf3 {[%emt 0:00:00]} Nc6 {[%emt 0:00:00]} 3. d3 {[%emt 0:00:00]} g6 {[%emt 0:00:51]} 4. g3 {[%emt 0:00:00]} Bg7 {[%emt 0:00:10]} 5. Bg2 {[%emt 0:00:12]} e5 {[%emt 0:00:26]} 6. Be3 {[%emt 0:04:11]} d6 {[%emt 0:02:38]} 7. O-O {[%emt 0:00:34]} Nge7 {[%emt 0:00:40]} 8. c3 {[%emt 0:00:45]} O-O {[%emt 0:04:30]} 9. Nh4 {[%emt 0:06:31]} Be6 {[%emt 0:05:04]} 10. Na3 {[%emt 0:06:45]} Qd7 {[%emt 0:03:26]} 11. Nc2 {[%emt 0:01:50]} Rad8 {[%emt 0:10:07]} 12. Qd2 {[%emt 0:03:59]} b6 {[%emt 0:02:02]} 13. c4 {[%emt 0:04:55]} Nd4 {[%emt 0:04:05]} 14. Nxd4 {[%emt 0:02:17]} exd4 {[%emt 0:04:55]} 15. Bh6 {[%emt 0:01:58]} f5 {[%emt 0:07:13]} 16. Rae1 {[%emt 0:07:16]} fxe4 {[%emt 0:14:12]} 17. Bxe4 {[%emt 0:07:04]} d5 {[%emt 0:07:31]} 18. cxd5 {[%emt 0:01:27]} Nxd5 {[%emt 0:01:15]} 19. Bxg7 {[%emt 0:07:43]} Kxg7 {[%emt 0:03:46]} 20. Qg5 {[%emt 0:03:35]} Rde8 {[%emt 0:06:14]} 21. Bxg6 {[%emt 0:03:50]} hxg6 {[%emt 0:02:20]} 22. Qxg6+ {[%emt 0:01:10]} Kh8 {[%emt 0:00:06]} 23. Qh6+ {[%emt 0:03:03]} Kg8 {[%emt 0:00:14]} 24. Re5 {[%emt 0:01:16]} Rf7 {[%emt 0:05:34]} 25. Rg5+ {[%emt 0:06:56]} Rg7 {[%emt 0:00:04]} 26. Ng6 {[%emt 0:00:25]} Rh7 {[%emt 0:06:32]} 27. Nf8+ {[%emt 0:08:41]} Kh8 {[%emt 0:00:04]} 28. Nxh7 {[%emt 0:05:30]} Qxh7 {[%emt 0:00:05]} 29. Qxh7+ {[%emt 0:00:34]} Kxh7 {[%emt 0:00:02]} 30. Re1 {[%emt 0:00:06]} Nf6 {[%emt 0:00:46]} 31. Rge5 {[%emt 0:00:26]} Bf7 {[%emt 0:00:54]} 32. Rxe8 {[%emt 0:00:13]} Bxe8 {[%emt 0:00:37]} 33. Re7+ {[%emt 0:00:26]} Kg6 {[%emt 0:00:50]} 34. Rxa7 {[%emt 0:00:16]} Bb5 {[%emt 0:00:09]} 35. Ra3 {[%emt 0:00:03]} Nd5 {[%emt 0:00:26]} 36. Kf1 {[%emt 0:00:27]} Nb4 {[%emt 0:00:34]} 37. Ke2 {[%emt 0:00:11]} c4 {[%emt 0:03:24]} 38. dxc4 {[%emt 0:00:13]} Bxc4+ {[%emt 0:00:03]} 39. Kd2 {[%emt 0:00:10]} Nd5 {[%emt 0:02:16]} 40. b3 {[%emt 0:00:00]} Bb5 {[%emt 0:00:00]} 41. Ra8 {[%emt 0:02:14]} Nc3 {[%emt 0:03:55]} 42. a4 {[%emt 0:00:49]} Ne4+ {[%emt 0:00:47]} 43. Ke1 {[%emt 0:00:42]} Bd7 {[%emt 0:00:50]} 44. Ra6 {[%emt 0:01:41]} Bg4 {[%emt 0:01:55]} 45. Rxb6+ {[%emt 0:00:42]} Kf5 {[%emt 0:00:08]} 46. Rb5+ {[%emt 0:00:47]} Ke6 {[%emt 0:00:57]} 47. f4 {[%emt 0:01:29]} Bf3 {[%emt 0:05:24]} 48. Rb8 {[%emt 0:01:25]} d3 {[%emt 0:04:39]} 49. Rd8 {[%emt 0:00:08]} d2+ {[%emt 0:00:08]} 50. Rxd2 {[%emt 0:00:05]} Nxd2 {[%emt 0:00:03]} 51. Kxd2 {[%emt 0:00:04]} Bg4 {[%emt 0:00:38]} 52. Kc3 {[%emt 0:02:23]} Kd5 {[%emt 0:00:16]} 53. Kb4 {[%emt 0:01:04]} Kc6 {[%emt 0:02:01]} 54. Ka5 {[%emt 0:02:58]} Bh3 {[%emt 0:00:43]} 55. b4 {[%emt 0:00:09]} Kb7 {[%emt 0:00:18]} 56. Kb5 {[%emt 0:00:08]} Bd7+ {[%emt 0:00:18]} 57. Ka5 {[%emt 0:00:09]} Bh3 {[%emt 0:00:11]} 58. b5 {[%emt 0:00:05]} Ka7 {[%emt 0:01:10]} 59. Kb4 {[%emt 0:00:04]} Kb6 {[%emt 0:00:10]} 60. a5+ {[%emt 0:00:04]} Ka7 {[%emt 0:00:26]} 61. Kc5 {[%emt 0:00:07]} Kb7 {[%emt 0:00:12]} 62. a6+ {[%emt 0:00:56]} Ka7 {[%emt 0:00:07]} 63. Kc6 {[%emt 0:00:04]} Bf5 {[%emt 0:04:12]} 64. Kc7 {[%emt 0:00:13]} Ka8 {[%emt 0:00:20]} 65. b6 {[%emt 0:00:14]} Bc8 {[%emt 0:00:07]} 66. b7+ {[%emt 0:00:08]} Ka7 {[%emt 0:00:05]} 67. b8=Q+ {[%emt 0:00:07]} Kxa6 {[%emt 0:00:05]} 68. Qb6# {[%emt 0:00:04]} 1-0

[Event "EYCC Open-U12 2019"]
[Site "Bratislava"]
[Date "2019.08.07"]
[Round "6.13"]
[White "Trost, Edvin"]
[Black "Macias Pino, Diego"]
[Result "1-0"]
[ECO "B19"]
[WhiteElo "2069"]
[BlackElo "2150"]
[Annotator "NA"]
[PlyCount "77"]
[EventDate "2019.08.02"]
[EventType "swiss"]
[EventCountry "SVK"]
[SourceTitle "playchess.com"]
[Source "ChessBase"]
[SourceQuality "1"]
[TimeControl "40/5400+30:1800+30"]

1. e4 {[%emt 0:00:00]} c6 {[%emt 0:00:00]} 2. d4 {[%emt 0:00:00]} d5 {[%emt 0:00:00]} 3. Nc3 {[%emt 0:00:00]} dxe4 {[%emt 0:00:00]} 4. Nxe4 {[%emt 0:00:00]} Bf5 {[%emt 0:00:00]} 5. Ng3 {[%emt 0:00:02]} Bg6 {[%emt 0:00:00]} 6. h4 {[%emt 0:00:07]} h6 {[%emt 0:00:00]} 7. Nf3 {[%emt 0:00:05]} Nd7 {[%emt 0:00:02]} 8. h5 {[%emt 0:00:04]} Bh7 {[%emt 0:00:06]} 9. Bd3 {[%emt 0:00:05]} Bxd3 {[%emt 0:00:06]} 10. Qxd3 {[%emt 0:00:06]} e6 {[%emt 0:00:09]} 11. Bd2 {[%emt 0:00:06]} Ngf6 {[%emt 0:00:19]} 12. O-O-O {[%emt 0:00:08]} Be7 {[%emt 0:01:03]} 13. Kb1 {[%emt 0:00:18]} Qb6 {[%emt 0:02:12]} 14. c4 {[%emt 0:01:32]} O-O {[%emt 0:04:50]} 15. Bf4 {[%emt 0:00:52]} c5 {[%emt 0:03:40]} 16. d5 {[%emt 0:00:07]} exd5 {[%emt 0:16:01]} 17. Nf5 {[%emt 0:00:07]} Bd8 {[%emt 0:00:04]} 18. cxd5 {[%emt 0:02:00]} Ng4 {[%emt 0:13:10]} 19. Qc2 {[%emt 0:31:54]} Bf6 {[%emt 0:07:13]} 20. Rh3 {[%emt 0:03:25]} Nge5 {[%emt 0:03:13]} 21. Nxe5 {[%emt 0:09:38]} Nxe5 {[%emt 0:03:22]} 22. Rb3 {[%emt 0:03:57]} Qa6 {[%emt 0:04:08]} 23. Bxe5 Bxe5 {[%emt 0:02:00]} 24. Qxc5 {[%emt 0:10:17]} Qe2 {[%emt 0:00:14]} 25. Qc2 {[%emt 0:00:31]} Qxh5 {[%emt 0:01:10]} 26. Re1 {[%emt 0:12:30]} Bf6 {[%emt 0:07:06]} 27. Rh3 {[%emt 0:01:04]} Qg6 {[%emt 0:01:43]} 28. Reh1 {[%emt 0:09:21]} Rfc8 {[%emt 0:09:27]} 29. Qd3 {[%emt 0:01:49]} Qh7 {[%emt 0:00:05]} 30. Rxh6 {[%emt 0:02:21]} Rc1+ {[%emt 0:03:50]} 31. Kxc1 {[%emt 0:00:26]} Bg5+ {[%emt 0:00:03]} 32. Kb1 {[%emt 0:04:21]} gxh6 {[%emt 0:00:03]} 33. g3 {[%emt 0:00:40]} h5 {[%emt 0:00:12]} 34. f4 {[%emt 0:00:44]} Bf6 {[%emt 0:00:05]} 35. g4 {[%emt 0:00:44]} Qg6 {[%emt 0:00:40]} 36. Rxh5 {[%emt 0:04:25]} Re8 {[%emt 0:00:29]} 37. Rh1 {[%emt 0:00:06]} Bg7 {[%emt 0:02:37]} 38. g5 {[%emt 0:02:00]} Kf8 {[%emt 0:06:42]} 39. d6 {[%emt 0:01:26]} 1-0

[Event "EYCC Open-U12 2019"]
[Site "Bratislava"]
[Date "2019.08.07"]
[Round "6.14"]
[White "Kanov, Nikola"]
[Black "Costa, Leonardo"]
[Result "1-0"]
[ECO "C54"]
[WhiteElo "1908"]
[BlackElo "2002"]
[Annotator "NA"]
[PlyCount "69"]
[EventDate "2019.08.02"]
[EventType "swiss"]
[EventCountry "SVK"]
[SourceTitle "playchess.com"]
[Source "ChessBase"]
[SourceQuality "1"]
[TimeControl "40/5400+30:1800+30"]

1. e4 {[%emt 0:00:00]} e5 {[%emt 0:00:00]} 2. Nf3 {[%emt 0:00:00]} Nc6 {[%emt 0:00:00]} 3. Bc4 {[%emt 0:00:00]} Bc5 {[%emt 0:00:00]} 4. c3 {[%emt 0:00:00]} Nf6 {[%emt 0:00:05]} 5. d3 {[%emt 0:00:09]} d6 {[%emt 0:00:31]} 6. O-O {[%emt 0:00:15]} a6 {[%emt 0:00:24]} 7. Bb3 {[%emt 0:00:17]} Ba7 {[%emt 0:01:43]} 8. Nbd2 {[%emt 0:00:24]} O-O {[%emt 0:00:54]} 9. h3 {[%emt 0:00:19]} Be6 {[%emt 0:07:37]} 10. Re1 {[%emt 0:00:36]} Bxb3 {[%emt 0:06:59]} 11. axb3 {[%emt 0:01:14]} Re8 {[%emt 0:01:42]} 12. Nf1 {[%emt 0:00:51]} Ne7 {[%emt 0:01:42]} 13. Ng3 {[%emt 0:00:19]} Ng6 {[%emt 0:00:43]} 14. Nf5 {[%emt 0:03:14]} h6 {[%emt 0:05:16]} 15. Nh2 {[%emt 0:03:07]} d5 {[%emt 0:11:20]} 16. Qf3 {[%emt 0:01:14]} c6 {[%emt 0:02:17]} 17. h4 {[%emt 0:15:47]} Kh7 {[%emt 0:29:46]} 18. g4 {[%emt 0:03:01]} Kg8 {[%emt 0:08:07]} 19. h5 {[%emt 0:03:28]} Nf8 {[%emt 0:00:47]} 20. Bxh6 {[%emt 0:08:28]} gxh6 {[%emt 0:00:34]} 21. Nxh6+ {[%emt 0:00:06]} Kg7 {[%emt 0:04:12]} 22. g5 {[%emt 0:00:12]} Ne6 {[%emt 0:03:51]} 23. Nf5+ {[%emt 0:01:28]} Kh8 {[%emt 0:00:22]} 24. gxf6 {[%emt 0:00:40]} Qxf6 {[%emt 0:00:16]} 25. Ng4 {[%emt 0:02:18]} Rg8 {[%emt 0:00:37]} 26. Kh1 {[%emt 0:01:53]} Qg5 {[%emt 0:03:09]} 27. Ngh6 {[%emt 0:01:21]} Rgf8 {[%emt 0:01:02]} 28. Rg1 {[%emt 0:00:50]} Qf4 {[%emt 0:00:12]} 29. Qxf4 {[%emt 0:00:19]} Nxf4 {[%emt 0:00:26]} 30. Rg7 {[%emt 0:00:47]} Nxd3 {[%emt 0:01:21]} 31. Rag1 {[%emt 0:05:07]} Nxf2+ {[%emt 0:01:50]} 32. Kh2 {[%emt 0:00:01]} Nxe4 {[%emt 0:00:14]} 33. R1g6 {[%emt 0:00:59]} fxg6 {[%emt 0:02:40]} 34. hxg6 {[%emt 0:00:06]} Nf6 {[%emt 0:00:03]} 35. Rh7+ {[%emt 0:00:04]} 1-0

[Event "EYCC Open-U12 2019"]
[Site "Bratislava"]
[Date "2019.08.07"]
[Round "6.15"]
[White "Kamilov, Dmitry"]
[Black "Ristic, Luka"]
[Result "1/2-1/2"]
[ECO "B06"]
[WhiteElo "1990"]
[BlackElo "2113"]
[Annotator "NA"]
[PlyCount "110"]
[EventDate "2019.08.02"]
[EventType "swiss"]
[EventCountry "SVK"]
[SourceTitle "playchess.com"]
[Source "ChessBase"]
[SourceQuality "1"]
[TimeControl "40/5400+30:1800+30"]

1. e4 {[%emt 0:00:00]} g6 {[%emt 0:00:00]} 2. d4 {[%emt 0:00:00]} Bg7 {[%emt 0:00:00]} 3. Nc3 {[%emt 0:00:00]} c6 {[%emt 0:00:00]} 4. Nf3 {[%emt 0:01:41]} d5 {[%emt 0:00:08]} 5. h3 {[%emt 0:00:10]} dxe4 {[%emt 0:00:11]} 6. Nxe4 {[%emt 0:00:05]} Nf6 {[%emt 0:00:07]} 7. Nxf6+ {[%emt 0:00:15]} exf6 {[%emt 0:00:08]} 8. Bc4 {[%emt 0:03:51]} O-O {[%emt 0:00:14]} 9. O-O {[%emt 0:00:10]} a5 {[%emt 0:00:21]} 10. Bf4 {[%emt 0:01:31]} Na6 {[%emt 0:01:09]} 11. c3 {[%emt 0:01:34]} Nc7 {[%emt 0:00:38]} 12. Re1 {[%emt 0:01:41]} Nd5 {[%emt 0:01:24]} 13. Bg3 {[%emt 0:01:11]} a4 {[%emt 0:03:04]} 14. Qd2 {[%emt 0:05:35]} Be6 {[%emt 0:02:02]} 15. Nh2 {[%emt 0:02:54]} b5 {[%emt 0:02:35]} 16. Be2 {[%emt 0:01:21]} Qa5 {[%emt 0:02:13]} 17. Bd6 {[%emt 0:06:31]} Rfd8 {[%emt 0:04:11]} 18. Bc5 {[%emt 0:07:11]} h5 {[%emt 0:01:27]} 19. Nf1 {[%emt 0:01:21]} Re8 {[%emt 0:03:38]} 20. Bf3 {[%emt 0:01:46]} f5 {[%emt 0:08:21]} 21. Ne3 {[%emt 0:01:10]} Bh6 {[%emt 0:04:42]} 22. Qc2 {[%emt 0:00:51]} Nxe3 {[%emt 0:00:59]} 23. fxe3 {[%emt 0:00:06]} Qc7 {[%emt 0:03:12]} 24. e4 {[%emt 0:02:36]} fxe4 {[%emt 0:01:09]} 25. Bxe4 {[%emt 0:00:52]} f5 {[%emt 0:12:27]} 26. Bf3 {[%emt 0:00:44]} Bf4 {[%emt 0:00:33]} 27. Re2 {[%emt 0:12:25]} Bc4 {[%emt 0:01:08]} 28. Rxe8+ {[%emt 0:00:16]} Rxe8 {[%emt 0:00:05]} 29. b3 {[%emt 0:00:08]} Be3+ {[%emt 0:11:36]} 30. Kh1 {[%emt 0:00:11]} Qg3 {[%emt 0:01:11]} 31. Bd6 {[%emt 0:10:39]} Qxd6 {[%emt 0:02:50]} 32. bxc4 {[%emt 0:00:05]} Bg5 {[%emt 0:02:54]} 33. Qf2 {[%emt 0:03:32]} bxc4 {[%emt 0:05:48]} 34. Re1 {[%emt 0:04:07]} Rxe1+ {[%emt 0:02:20]} 35. Qxe1 {[%emt 0:00:05]} Kf8 {[%emt 0:00:54]} 36. Qe2 {[%emt 0:12:43]} Qg3 {[%emt 0:17:36]} 37. Bxc6 {[%emt 0:01:53]} Qxc3 {[%emt 0:01:14]} 38. Qe8+ {[%emt 0:09:24]} Kg7 {[%emt 0:00:06]} 39. Bd5 {[%emt 0:00:08]} Qxd4 {[%emt 0:04:56]} 40. Qg8+ {[%emt 0:00:00]} Kh6 {[%emt 0:00:00]} 41. Qf8+ {[%emt 0:00:31]} Qg7 {[%emt 0:00:43]} 42. Qxg7+ {[%emt 0:00:06]} Kxg7 {[%emt 0:00:05]} 43. Bxc4 {[%emt 0:00:07]} a3 {[%emt 0:00:09]} 44. g4 {[%emt 0:00:49]} fxg4 {[%emt 0:00:46]} 45. hxg4 {[%emt 0:00:04]} h4 {[%emt 0:00:12]} 46. Kg2 {[%emt 0:00:06]} Kf6 {[%emt 0:00:03]} 47. Bd3 {[%emt 0:00:26]} Bf4 {[%emt 0:00:27]} 48. Kh3 {[%emt 0:00:08]} g5 {[%emt 0:00:26]} 49. Bc4 {[%emt 0:00:10]} Ke5 {[%emt 0:00:05]} 50. Bg8 {[%emt 0:00:07]} Kd4 {[%emt 0:00:06]} 51. Bb3 {[%emt 0:00:05]} Kc3 {[%emt 0:00:25]} 52. Bd5 {[%emt 0:00:11]} Bd6 {[%emt 0:00:07]} 53. Bb3 {[%emt 0:00:05]} Bc7 {[%emt 0:00:05]} 54. Bd5 {[%emt 0:00:05]} Bd6 {[%emt 0:00:04]} 55. Bb3 {[%emt 0:00:05]} Bf8 1/2-1/2

[Event "EYCC Open-U12 2019"]
[Site "Bratislava"]
[Date "2019.08.07"]
[Round "6.16"]
[White "Palczert, Matyas"]
[Black "Janous, Marek"]
[Result "1-0"]
[ECO "B90"]
[WhiteElo "2065"]
[BlackElo "1717"]
[Annotator "NA"]
[PlyCount "127"]
[EventDate "2019.08.02"]
[EventType "swiss"]
[EventCountry "SVK"]
[SourceTitle "playchess.com"]
[Source "ChessBase"]
[SourceQuality "1"]
[TimeControl "40/5400+30:1800+30"]

1. e4 {[%emt 0:00:00]} c5 {[%emt 0:00:00]} 2. Nf3 {[%emt 0:00:00]} Nf6 {[%emt 0:00:28]} 3. Nc3 {[%emt 0:00:31]} d6 {[%emt 0:00:22]} 4. d4 {[%emt 0:05:06]} cxd4 {[%emt 0:00:08]} 5. Nxd4 {[%emt 0:00:08]} a6 {[%emt 0:00:04]} 6. Nb3 {[%emt 0:01:19]} e5 {[%emt 0:01:59]} 7. Bg5 {[%emt 0:01:00]} Be7 {[%emt 0:00:08]} 8. Bxf6 {[%emt 0:03:09]} Bxf6 {[%emt 0:01:06]} 9. Nd5 {[%emt 0:00:55]} Nd7 {[%emt 0:01:41]} 10. Be2 {[%emt 0:09:48]} Nb6 {[%emt 0:04:19]} 11. Nxf6+ {[%emt 0:01:03]} Qxf6 {[%emt 0:00:16]} 12. O-O {[%emt 0:04:31]} O-O {[%emt 0:00:19]} 13. Qd2 {[%emt 0:01:42]} Qg6 {[%emt 0:00:23]} 14. Qb4 {[%emt 0:17:56]} Nd7 {[%emt 0:04:31]} 15. Rad1 {[%emt 0:05:05]} Nc5 {[%emt 0:03:56]} 16. Nxc5 {[%emt 0:02:07]} dxc5 {[%emt 0:00:05]} 17. Qxc5 {[%emt 0:00:17]} Qxe4 {[%emt 0:00:30]} 18. Bd3 {[%emt 0:00:29]} Qh4 {[%emt 0:11:29]} 19. Qxe5 {[%emt 0:02:37]} Be6 {[%emt 0:00:38]} 20. b3 {[%emt 0:04:23]} Rad8 {[%emt 0:00:51]} 21. c4 {[%emt 0:04:44]} Rfe8 {[%emt 0:00:19]} 22. Qg3 {[%emt 0:02:31]} Qf6 {[%emt 0:01:12]} 23. Rfe1 {[%emt 0:06:52]} Rd4 {[%emt 0:03:47]} 24. Be4 {[%emt 0:03:13]} Rxd1 {[%emt 0:01:19]} 25. Rxd1 {[%emt 0:00:05]} Qe7 {[%emt 0:02:41]} 26. Qd3 {[%emt 0:03:06]} g6 {[%emt 0:00:32]} 27. Bf3 {[%emt 0:01:14]} Bf5 {[%emt 0:00:15]} 28. Qd2 {[%emt 0:00:32]} h5 {[%emt 0:05:26]} 29. h3 {[%emt 0:01:04]} Kh7 {[%emt 0:05:18]} 30. Qd5 {[%emt 0:01:19]} Rb8 {[%emt 0:04:33]} 31. Qd6 {[%emt 0:02:43]} Qxd6 {[%emt 0:02:02]} 32. Rxd6 {[%emt 0:00:53]} b6 {[%emt 0:01:44]} 33. Bd5 {[%emt 0:03:14]} Kg7 {[%emt 0:00:19]} 34. a3 {[%emt 0:01:34]} Bc2 {[%emt 0:06:21]} 35. b4 {[%emt 0:01:19]} Bb3 {[%emt 0:00:57]} 36. Rd7 {[%emt 0:01:10]} a5 {[%emt 0:01:21]} 37. Rxf7+ {[%emt 0:01:09]} Kh6 {[%emt 0:00:10]} 38. Rd7 {[%emt 0:01:24]} axb4 {[%emt 0:00:09]} 39. axb4 {[%emt 0:00:00]} Rc8 {[%emt 0:00:00]} 40. Rb7 {[%emt 0:00:00]} Bxc4 {[%emt 0:00:00]} 41. Bxc4 {[%emt 0:01:47]} Rxc4 {[%emt 0:00:38]} 42. Rxb6 {[%emt 0:00:09]} Rc1+ {[%emt 0:00:05]} 43. Kh2 {[%emt 0:00:10]} Rb1 {[%emt 0:00:18]} 44. f4 {[%emt 0:02:18]} Kg7 {[%emt 0:01:30]} 45. g4 {[%emt 0:02:06]} h4 {[%emt 0:00:30]} 46. f5 {[%emt 0:03:49]} gxf5 {[%emt 0:00:09]} 47. gxf5 {[%emt 0:00:05]} Rb2+ {[%emt 0:00:12]} 48. Kg1 {[%emt 0:00:09]} Kh7 {[%emt 0:00:13]} 49. b5 {[%emt 0:00:38]} Kg7 {[%emt 0:00:05]} 50. Rb8 {[%emt 0:00:41]} Kf6 {[%emt 0:00:49]} 51. b6 {[%emt 0:00:09]} Kxf5 {[%emt 0:00:03]} 52. b7 {[%emt 0:00:18]} Rb1+ {[%emt 0:00:05]} 53. Kf2 {[%emt 0:00:06]} Rb2+ {[%emt 0:00:04]} 54. Ke3 {[%emt 0:00:16]} Rb3+ {[%emt 0:00:05]} 55. Kd2 {[%emt 0:00:07]} Kf4 {[%emt 0:00:18]} 56. Rf8+ {[%emt 0:00:52]} Kg3 {[%emt 0:00:04]} 57. b8=Q+ {[%emt 0:00:09]} Rxb8 {[%emt 0:00:04]} 58. Rxb8 {[%emt 0:00:05]} Kxh3 {[%emt 0:00:04]} 59. Rg8 {[%emt 0:00:37]} Kh2 {[%emt 0:00:06]} 60. Ke2 {[%emt 0:00:10]} h3 {[%emt 0:00:07]} 61. Kf2 {[%emt 0:00:10]} Kh1 {[%emt 0:00:14]} 62. Rh8 {[%emt 0:00:42]} h2 {[%emt 0:00:05]} 63. Kg3 {[%emt 0:00:05]} Kg1 {[%emt 0:00:38]} 64. Rxh2 {[%emt 0:00:07]} 1-0

[Event "EYCC Open-U12 2019"]
[Site "Bratislava"]
[Date "2019.08.07"]
[Round "6.17"]
[White "Labruyere, Roger"]
[Black "Habans Aguerrea, Javier"]
[Result "0-1"]
[ECO "B27"]
[WhiteElo "1897"]
[BlackElo "2083"]
[Annotator "NA"]
[PlyCount "44"]
[EventDate "2019.08.02"]
[EventType "swiss"]
[EventCountry "SVK"]
[SourceTitle "playchess.com"]
[Source "ChessBase"]
[SourceQuality "1"]
[TimeControl "40/5400+30:1800+30"]

1. Nf3 {[%emt 0:00:00]} c5 {[%emt 0:00:00]} 2. e4 {[%emt 0:00:23]} g6 {[%emt 0:00:00]} 3. d4 {[%emt 0:00:10]} Bg7 {[%emt 0:00:03]} 4. Nc3 {[%emt 0:01:32]} cxd4 {[%emt 0:00:05]} 5. Nxd4 {[%emt 0:00:07]} Nc6 {[%emt 0:00:06]} 6. Be3 {[%emt 0:00:37]} Nf6 {[%emt 0:00:07]} 7. f3 {[%emt 0:01:34]} O-O {[%emt 0:00:33]} 8. Bc4 {[%emt 0:00:07]} Qb6 {[%emt 0:06:33]} 9. Bb3 {[%emt 0:07:34]} Nxe4 {[%emt 0:04:56]} 10. Nd5 {[%emt 0:08:27]} Qa5+ {[%emt 0:16:03]} 11. c3 {[%emt 0:00:59]} Nf6 {[%emt 0:01:54]} 12. Nxf6+ {[%emt 0:06:11]} Bxf6 {[%emt 0:03:03]} 13. Nxc6 {[%emt 0:02:49]} dxc6 {[%emt 0:01:52]} 14. h4 {[%emt 0:04:44]} h5 {[%emt 0:05:47]} 15. g4 {[%emt 0:09:47]} hxg4 {[%emt 0:04:54]} 16. fxg4 {[%emt 0:02:51]} Qe5 {[%emt 0:03:22]} 17. Qf3 {[%emt 0:13:15]} Bxg4 {[%emt 0:06:08]} 18. Qxg4 {[%emt 0:00:21]} Qxe3+ {[%emt 0:00:09]} 19. Kf1 {[%emt 0:00:14]} Kg7 {[%emt 0:11:33]} 20. Rg1 {[%emt 0:04:01]} Rh8 {[%emt 0:01:31]} 21. h5 {[%emt 0:04:45]} Rxh5 {[%emt 0:00:30]} 22. Bxf7 {[%emt 0:00:57]} Rg5 {[%emt 0:01:36]} 0-1

[Event "EYCC Open-U12 2019"]
[Site "Bratislava"]
[Date "2019.08.07"]
[Round "6.18"]
[White "Pidluznij, Gleb"]
[Black "Saveljev, Ivan"]
[Result "1-0"]
[ECO "B22"]
[WhiteElo "1947"]
[BlackElo "2040"]
[Annotator "NA"]
[PlyCount "103"]
[EventDate "2019.08.02"]
[EventType "swiss"]
[EventCountry "SVK"]
[SourceTitle "playchess.com"]
[Source "ChessBase"]
[SourceQuality "1"]
[TimeControl "40/5400+30:1800+30"]

1. e4 {[%emt 0:00:00]} c5 {[%emt 0:00:00]} 2. c3 {[%emt 0:00:00]} Nf6 {[%emt 0:00:02]} 3. e5 {[%emt 0:00:26]} Nd5 {[%emt 0:00:10]} 4. Nf3 {[%emt 0:00:20]} Nc6 {[%emt 0:00:21]} 5. Bc4 {[%emt 0:00:39]} Nb6 {[%emt 0:00:45]} 6. Bb3 {[%emt 0:00:16]} c4 {[%emt 0:01:26]} 7. Bc2 {[%emt 0:00:31]} g6 {[%emt 0:08:10]} 8. O-O {[%emt 0:00:37]} Bg7 {[%emt 0:03:16]} 9. Re1 {[%emt 0:00:36]} O-O {[%emt 0:06:23]} 10. Qe2 {[%emt 0:00:39]} d6 {[%emt 0:03:16]} 11. exd6 {[%emt 0:01:36]} exd6 {[%emt 0:07:00]} 12. b3 {[%emt 0:09:44]} Be6 {[%emt 0:18:20]} 13. Na3 {[%emt 0:08:03]} d5 {[%emt 0:05:49]} 14. Nb5 {[%emt 0:05:56]} Re8 {[%emt 0:10:48]} 15. h3 {[%emt 0:18:19]} Nb4 {[%emt 0:18:00]} 16. Nbd4 {[%emt 0:06:56]} Nxc2 {[%emt 0:00:29]} 17. Nxc2 {[%emt 0:00:11]} Qf6 {[%emt 0:00:30]} 18. Ba3 {[%emt 0:10:50]} Bd7 {[%emt 0:00:26]} 19. Ne3 {[%emt 0:01:20]} Qf4 {[%emt 0:01:37]} 20. Bc5 {[%emt 0:00:32]} Rac8 {[%emt 0:02:30]} 21. Bxb6 {[%emt 0:02:57]} axb6 {[%emt 0:00:11]} 22. Nxd5 {[%emt 0:00:16]} Qd6 {[%emt 0:00:38]} 23. Ne7+ {[%emt 0:01:27]} Kf8 {[%emt 0:00:50]} 24. Nxc8 {[%emt 0:00:09]} Rxc8 {[%emt 0:00:10]} 25. Ne5 {[%emt 0:02:03]} Be6 {[%emt 0:00:55]} 26. Nxc4 {[%emt 0:00:29]} Qc7 {[%emt 0:00:07]} 27. a4 Bd5 {[%emt 0:01:01]} 28. Qe3 {[%emt 0:02:43]} Bc6 {[%emt 0:01:08]} 29. Qxb6 {[%emt 0:00:42]} Qf4 {[%emt 0:00:26]} 30. Qe3 {[%emt 0:00:46]} Qf6 {[%emt 0:00:23]} 31. Qc5+ {[%emt 0:01:36]} Kg8 {[%emt 0:00:07]} 32. Qe5 {[%emt 0:08:42]} Qd8 {[%emt 0:00:58]} 33. Qe3 {[%emt 0:00:13]} Qd5 {[%emt 0:00:08]} 34. f3 {[%emt 0:00:29]} Rd8 {[%emt 0:00:31]} 35. d4 {[%emt 0:00:29]} Qh5 {[%emt 0:00:19]} 36. Qf4 {[%emt 0:02:09]} Bh6 {[%emt 0:00:18]} 37. Qe5 {[%emt 0:00:14]} Qh4 {[%emt 0:00:14]} 38. Qe2 {[%emt 0:06:22]} Bf4 {[%emt 0:00:08]} 39. Qf2 {[%emt 0:00:29]} Bg3 {[%emt 0:00:08]} 40. Qf1 {[%emt 0:00:00]} Bf4 {[%emt 0:00:00]} 41. Re4 {[%emt 0:04:23]} Bxe4 {[%emt 0:00:35]} 42. fxe4 {[%emt 0:00:05]} Qg3 {[%emt 0:00:19]} 43. Qf3 {[%emt 0:00:55]} Qh2+ {[%emt 0:00:08]} 44. Kf2 {[%emt 0:00:06]} Re8 {[%emt 0:00:06]} 45. Rf1 {[%emt 0:03:26]} f5 {[%emt 0:00:35]} 46. e5 {[%emt 0:00:33]} g5 {[%emt 0:00:08]} 47. Ke2 {[%emt 0:00:47]} h5 {[%emt 0:00:07]} 48. Qd5+ {[%emt 0:00:14]} Kh8 {[%emt 0:00:07]} 49. Kd3 {[%emt 0:01:49]} g4 {[%emt 0:00:12]} 50. hxg4 {[%emt 0:02:37]} hxg4 {[%emt 0:00:05]} 51. Nd6 {[%emt 0:00:50]} Re7 {[%emt 0:00:29]} 52. Nxf5 {[%emt 0:00:27]} 1-0

[Event "EYCC Open-U12 2019"]
[Site "Bratislava"]
[Date "2019.08.07"]
[Round "6.19"]
[White "Kvaloy, Aksel Bu"]
[Black "Stevanovic, Jovan"]
[Result "0-1"]
[ECO "B62"]
[WhiteElo "2205"]
[BlackElo "1783"]
[Annotator "NA"]
[PlyCount "114"]
[EventDate "2019.08.02"]
[EventType "swiss"]
[EventCountry "SVK"]
[SourceTitle "playchess.com"]
[Source "ChessBase"]
[SourceQuality "1"]
[TimeControl "40/5400+30:1800+30"]

1. e4 c5 2. Nf3 d6 3. d4 cxd4 4. Nxd4 Nf6 5. Nc3 Nc6 6. Bg5 e6 7. Qd3 Bd7 8. O-O-O a6 9. Nxc6 Bxc6 10. Be2 Be7 11. Kb1 O-O 12. f4 h6 13. Bxf6 Bxf6 14. Bf3 Qb6 15. Rhe1 Rfd8 16. f5 exf5 17. exf5 Rac8 18. Bxc6 Rxc6 19. Na4 Qa5 20. Qb3 b5 21. Qd5 Qc7 22. Nc3 Bxc3 23. bxc3 Rxc3 24. f6 Rxc2 25. Re7 Qc4 26. Qxc4 Rxc4 27. fxg7 Kxg7 28. Rf1 Rf8 29. Rd7 Rc6 30. g4 Kg6 31. h4 h5 32. g5 Kg7 33. Rf4 a5 34. Kb2 b4 35. Kb1 Rb6 36. Kc2 a4 37. Kb2 b3 38. a3 Ra6 39. Kb1 Kg8 40. Kb2 Kg7 41. Rb7 d5 42. Kc3 Rc6+ 43. Kd3 Rc4 44. Rxc4 dxc4+ 45. Kxc4 Re8 46. Kd3 Re1 47. Rb4 Ra1 48. Kd2 Rxa3 49. Kc1 Ra2 50. Kb1 a3 51. Ra4 Rb2+ 52. Ka1 Rh2 53. Rxa3 Ra2+ 54. Rxa2 bxa2 55. Kxa2 Kg6 56. Kb3 Kf5 57. Kc4 Kg4 0-1